bitfinex-derivatives/quotes_BNBF0:USTF0_20250524
["timestamp","ask_amount","ask_price","bid_price","bid_amount"]
[1748095835870,0.44352738,672.58,672.29,0.67828514]
[1748095836067,0.44332405,672.57,672.29,0.67828514]
[1748095836267,0.44352738,672.58,672.29,0.67828514]
[1748095836667,0.44332698,672.57,672.3,0.67828514]
[1748095836863,0.44352738,672.58,672.3,0.67828514]
[1748095837266,0.44332436,672.57,672.3,0.67828514]
[1748095837463,0.44352738,672.58,672.3,0.67828514]
[1748095838273,0.44352738,672.58,672.31,0.67828514]
[1748095839475,0.44352738,672.58,672.32,0.67828514]
[1748095840577,0.44352738,672.58,672.33,0.67828514]
[1748095841578,0.44352738,672.58,672.34,0.67828514]
[1748095842875,0.44352738,672.58,672.35,0.67828514]
[1748095844179,0.44352738,672.58,672.36,0.67828514]
[1748095845582,0.44352738,672.58,672.37,0.67828514]
[1748095847184,0.44352738,672.58,672.28,0.67828514]
[1748095847883,0.44352738,672.58,672.29,0.67828514]
[1748095849893,0.44352738,672.58,672.3,0.67828514]
[1748095851294,0.44352738,672.58,672.31,0.67828514]
[1748095852798,0.44352738,672.58,672.32,0.67828514]
[1748095853697,0.44352738,672.58,672.33,0.67828514]
[1748095854897,0.44352738,672.58,672.34,0.67828514]
[1748095856096,0.44352738,672.58,672.27,0.69]
[1748095856097,0.44352738,672.58,672.28,0.67828514]
[1748095857999,0.44352738,672.58,672.29,0.67828514]
[1748095858703,0.44352738,672.58,672.3,0.67828514]
[1748095860803,0.44352738,672.58,672.31,0.67828514]
[1748095861803,0.44352738,672.58,672.32,0.67828514]
[1748095863402,0.44352738,672.58,672.33,0.67828514]
[1748095864905,0.44352738,672.58,672.34,0.67828514]
[1748095866309,0.44352738,672.58,672.35,0.67828514]
[1748095868009,0.44352738,672.58,672.36,1.41428514]
[1748095869310,0.44352738,672.58,672.37,0.67828514]
[1748095870612,0.44352738,672.58,672.38,0.67828514]
[1748095871914,0.44352738,672.58,672.39,0.67828514]
[1748095872912,0.44352738,672.58,672.4,0.67828514]
[1748095874115,0.44352738,672.58,672.41,1.57541456]
[1748095875817,0.44352738,672.58,672.42,0.67828514]
[1748095877720,0.44352738,672.58,672.48,0.89712942]
[1748095878614,0.44352738,672.58,672.49,0.67828514]
[1748095879918,0.44352738,672.58,672.5,0.67828514]
[1748095880715,0.44352738,672.58,672.51,0.67828514]
[1748095882522,0.44352738,672.58,672.52,0.67828514]
[1748095883723,0.44352738,672.58,672.41,0.67828514]
[1748095885426,0.44352738,672.58,672.4,0.89712942]
[1748095885427,0.44352738,672.58,672.42,0.67828514]
[1748095886520,0.44352738,672.58,672.41,0.67828514]
[1748095889527,0.44352738,672.58,672.36,0.67828514]
[1748095894333,0.44352738,672.58,672.35,0.67828514]
[1748095895831,0.44352738,672.58,672.36,0.67828514]
[1748095897234,0.44352738,672.58,672.35,0.67828514]
[1748095898538,0.44352738,672.58,672.36,0.67828514]
[1748095899636,0.44352738,672.58,672.35,0.67828514]
[1748095901138,0.44352738,672.58,672.38,0.89712942]
[1748095902334,0.44352738,672.58,672.39,0.67828514]
[1748095904943,0.44352738,672.58,672.34,0.67828514]
[1748095906646,0.44352738,672.58,672.35,0.67828514]
[1748095907541,0.44352738,672.58,672.36,0.67828514]
[1748095909150,0.44352738,672.58,672.37,0.67828514]
[1748095910550,0.44352738,672.58,672.38,0.67828514]
[1748095912154,0.44352738,672.58,672.44,0.89712942]
[1748095913248,0.44352738,672.58,671.96,0.726]
[1748095913651,0.44352738,672.58,671.97,0.69052751]
[1748095915455,0.44352738,672.58,672.44,0.70823802]
[1748095916253,0.44352738,672.58,672.45,0.69052751]
[1748095917558,0.44352738,672.58,672.48,0.70823802]
[1748095918958,0.44352738,672.58,672.49,0.69052751]
[1748095920757,0.44352738,672.58,672.51,0.70823802]
[1748095922361,0.44352738,672.58,672.52,0.69052751]
[1748095923963,0.44352738,672.58,672.51,0.70823802]
[1748095923964,0.44352738,672.58,672.53,0.69052751]
[1748095925460,0.44352738,672.58,672.54,0.69052751]
[1748095927066,0.44352738,672.58,672.55,0.69052751]
[1748095927867,0.44352738,672.58,672.56,0.69052751]
[1748095929568,0.44352738,672.58,672.57,0.69052751]
[1748095938876,0.25847278,673.74,672.57,0.69052751]
[1748095939076,0.29685922,673.72,672.57,0.69052751]
[1748095940884,0.29685922,673.72,672.67,0.70569446]
[1748095942377,0.29685922,673.72,672.68,0.69052751]
[1748095944174,0.29685922,673.72,672.69,0.69052751]
[1748095945674,0.29685922,673.72,672.7,0.69052751]
[1748095946779,0.29685922,673.72,672.71,0.69052751]
[1748095947582,0.29685922,673.72,672.72,0.69052751]
[1748095948782,0.29685922,673.72,672.73,0.69052751]
[1748095949983,0.29685922,673.72,672.74,0.69052751]
[1748095951178,0.29685922,673.72,672.75,0.69052751]
[1748095952287,0.29685922,673.72,672.76,0.69052751]
[1748095953285,0.29685922,673.72,672.77,0.69052751]
[1748095954588,0.29685922,673.72,672.78,0.69052751]
[1748095955791,0.29685922,673.72,672.79,0.69052751]
[1748095957090,0.29685922,673.72,672.8,0.69052751]
[1748095958500,0.29685922,673.72,672.81,0.69052751]
[1748095959405,0.29685922,673.72,672.82,0.69052751]
[1748095961103,0.29685922,673.72,672.56,0.70569446]
[1748095961604,0.29685922,673.72,672.56,1.41869446]
[1748095962301,0.29685922,673.72,672.57,0.6831923]
[1748095963707,0.29685922,673.72,672.58,0.6831923]
[1748095965208,0.29685922,673.72,672.59,0.6831923]
[1748095966405,0.29685922,673.72,672.6,0.70569446]
[1748095966609,0.29685922,673.72,672.6,1.38888676]
[1748095967507,0.29685922,673.72,672.61,0.6831923]
[1748095968707,0.29685922,673.72,672.62,1.38888676]
[1748095970312,0.29685922,673.72,672.63,0.6831923]
[1748095971710,0.29685922,673.72,672.65,0.70569446]
[1748095973111,0.29685922,673.72,672.66,0.6831923]
[1748095974314,0.29685922,673.72,672.69,0.70569446]
[1748095975416,0.29685922,673.72,672.7,0.6831923]
[1748095976613,0.29685922,673.72,672.71,0.6831923]
[1748095977520,0.29685922,673.72,672.72,0.6831923]
[1748095979121,0.29685922,673.72,672.73,0.6831923]
[1748095980217,0.29685922,673.72,672.74,0.6831923]
[1748095981922,0.29685922,673.72,672.75,0.6831923]
[1748095983521,0.29685922,673.72,672.76,0.6831923]
[1748095985424,0.29685922,673.72,672.77,0.6831923]
[1748095986822,0.29685922,673.72,672.78,0.6831923]
[1748095989122,0.29685922,673.72,672.67,0.70569446]
[1748095989123,0.29685922,673.72,672.79,0.6831923]
[1748095990326,0.29685922,673.72,672.8,0.6831923]
[1748095991221,0.29685922,673.72,672.81,0.6831923]
[1748095992622,0.29685922,673.72,672.82,0.6831923]
[1748095994027,0.29685922,673.72,672.68,1.38888676]
[1748095995131,0.29685922,673.72,672.69,0.6831923]
[1748095996525,0.29685922,673.72,672.7,0.6831923]
[1748095997629,0.29685922,673.72,672.71,0.6831923]
[1748095999033,0.29685922,673.72,672.72,0.6831923]
[1748096000431,0.29685922,673.72,672.73,0.6831923]
[1748096001833,0.29685922,673.72,672.74,0.6831923]
[1748096003226,0.29685922,673.72,672.75,0.6831923]
[1748096004532,0.29685922,673.72,672.76,0.6831923]
[1748096005231,0.29685922,673.72,672.77,0.6831923]
[1748096006230,0.29685922,673.72,672.78,0.6831923]
[1748096008057,0.29685922,673.72,672.79,0.6831923]
[1748096009834,0.29685922,673.72,672.8,0.6831923]
[1748096010937,0.29685922,673.72,672.56,0.713]
[1748096012633,0.29685922,673.72,672.57,0.680135]
[1748096014238,0.29685922,673.72,672.58,0.680135]
[1748096015240,0.29685922,673.72,672.59,0.680135]
[1748096016343,0.29685922,673.72,672.6,0.680135]
[1748096017939,0.29685922,673.72,672.61,0.680135]
[1748096019247,0.29685922,673.72,672.62,0.680135]
[1748096019948,0.29685922,673.72,672.63,0.671]
[1748096020845,0.29685922,673.72,672.64,0.680135]
[1748096022547,0.29685922,673.72,672.65,0.680135]
[1748096023853,0.29685922,673.72,672.66,0.680135]
[1748096025054,0.29685922,673.72,672.67,0.680135]
[1748096026655,0.29685922,673.72,672.68,0.680135]
[1748096027855,0.29685922,673.72,672.69,0.680135]
[1748096029256,0.29685922,673.72,672.7,0.680135]
[1748096030258,0.29685922,673.72,672.71,0.680135]
[1748096032259,0.29685922,673.72,672.72,0.680135]
[1748096033255,0.29685922,673.72,672.73,0.680135]
[1748096034762,0.29685922,673.72,672.74,0.680135]
[1748096035461,0.29685922,673.72,672.64,0.680135]
[1748096036962,0.29685922,673.72,672.65,0.680135]
[1748096038368,0.29685922,673.72,672.66,0.680135]
[1748096039664,0.29685922,673.72,672.67,0.680135]
[1748096040468,0.29685922,673.72,672.68,0.680135]
[1748096042268,0.29685922,673.72,672.69,0.680135]
[1748096043275,0.29685922,673.72,672.7,0.680135]
[1748096045075,0.29685922,673.72,672.71,0.680135]
[1748096045976,0.29685922,673.72,672.64,0.680135]
[1748096047879,0.29685922,673.72,672.65,0.680135]
[1748096049177,0.29685922,673.72,672.66,0.680135]
[1748096050480,0.29685922,673.72,672.67,0.680135]
[1748096051378,0.29685922,673.72,672.68,0.680135]
[1748096052579,0.29685922,673.72,672.69,0.680135]
[1748096053980,0.29685922,673.72,672.7,0.680135]
[1748096055480,0.29685922,673.72,672.71,0.680135]
[1748096056780,0.29685922,673.72,672.72,0.680135]
[1748096057881,0.29685922,673.72,672.73,0.680135]
[1748096058880,0.29685922,673.72,672.74,0.680135]
[1748096060283,0.29685922,673.72,672.75,0.680135]
[1748096061783,0.29685922,673.72,672.76,0.680135]
[1748096062984,0.29685922,673.72,672.77,0.680135]
[1748096063685,0.29685922,673.72,672.64,0.680135]
[1748096064987,0.29685922,673.72,672.65,0.680135]
[1748096066489,0.29685922,673.72,672.66,0.680135]
[1748096067687,0.29685922,673.72,672.67,0.680135]
[1748096078692,0.29685922,673.72,672.68,0.606]
[1748096078887,0.29685922,673.72,672.69,0.680135]
[1748096080094,0.29685922,673.72,672.7,0.680135]
[1748096081490,0.29685922,673.72,672.71,0.680135]
[1748096082993,0.29685922,673.72,672.72,0.680135]
[1748096083795,0.29685922,673.72,672.73,0.680135]
[1748096085190,0.29685922,673.72,672.74,0.680135]
[1748096086091,0.29685922,673.72,672.75,0.680135]
[1748096087098,0.29685922,673.72,672.76,0.680135]
[1748096088797,0.29685922,673.72,672.77,0.680135]
[1748096090098,0.29685922,673.72,672.78,0.680135]
[1748096091701,0.29685922,673.72,672.79,0.680135]
[1748096092997,0.29685922,673.72,672.8,0.680135]
[1748096094409,0.29685922,673.72,672.81,0.680135]
[1748096095511,0.29685922,673.72,672.82,0.680135]
[1748096097013,0.29685922,673.72,672.83,0.680135]
[1748096098613,0.29685922,673.72,672.84,0.680135]
[1748096099711,0.29685922,673.72,672.85,0.680135]
[1748096101508,0.29685922,673.72,672.86,0.680135]
[1748096102208,0.29685922,673.72,672.87,0.680135]
[1748096104120,0.29685922,673.72,672.88,0.680135]
[1748096105118,0.29685922,673.72,672.89,0.680135]
[1748096106919,0.29685922,673.72,672.71,0.70569446]
[1748096108017,0.29685922,673.72,672.72,0.680135]
[1748096109721,0.29685922,673.72,672.73,0.680135]
[1748096111322,0.29685922,673.72,672.74,0.680135]
[1748096112924,0.29685922,673.72,672.79,0.70569446]
[1748096114427,0.29685922,673.72,672.8,0.680135]
[1748096115127,0.29685922,673.72,672.81,0.680135]
[1748096116329,0.29685922,673.72,672.82,0.680135]
[1748096117433,0.29685922,673.72,672.83,0.680135]
[1748096118531,0.29685922,673.72,672.84,0.680135]
[1748096120035,0.29685922,673.72,672.85,0.680135]
[1748096120936,0.29685922,673.72,672.86,0.680135]
[1748096122436,0.29685922,673.72,672.68,0.606]
[1748096122634,0.29685922,673.72,672.87,0.68723557]
[1748096123838,0.29685922,673.72,672.88,0.68723557]
[1748096125039,0.29685922,673.72,672.89,0.68723557]
[1748096126340,0.29685922,673.72,672.9,0.68723557]
[1748096127942,0.29685922,673.72,672.91,0.68723557]
[1748096129543,0.29685922,673.72,672.92,0.68723557]
[1748096130343,0.29685922,673.72,672.93,0.68723557]
[1748096130841,0.29685922,673.72,672.93,1.26523557]
[1748096131552,0.29685922,673.72,672.94,0.68723557]
[1748096133552,0.29685922,673.72,672.95,0.68723557]
[1748096134648,0.29685922,673.72,672.96,0.68723557]
[1748096136052,0.29685922,673.72,672.97,0.68723557]
[1748096137246,0.29685922,673.72,672.98,0.68723557]
[1748096139249,0.29685922,673.72,672.99,0.68723557]
[1748096140550,0.29685922,673.72,673.0,0.68723557]
[1748096141851,0.29685922,673.72,673.01,0.68723557]
[1748096143455,0.29685922,673.72,673.02,0.68723557]
[1748096145155,0.29685922,673.72,673.03,0.68723557]
[1748096146555,0.29685922,673.72,673.04,0.68723557]
[1748096148252,0.29685922,673.72,673.05,0.68723557]
[1748096149854,0.29685922,673.72,673.06,0.68723557]
[1748096151159,0.29685922,673.72,673.07,0.68723557]
[1748096152253,0.29685922,673.72,673.08,0.68723557]
[1748096153863,0.29685922,673.72,673.09,0.68723557]
[1748096154762,0.29685922,673.72,673.1,0.68723557]
[1748096156163,0.29685922,673.72,673.11,0.68723557]
[1748096157164,0.29685922,673.72,673.12,0.68723557]
[1748096158369,0.29685922,673.72,673.13,0.68723557]
[1748096159664,0.29685922,673.72,673.14,0.68723557]
[1748096161166,0.29685922,673.72,673.15,0.68723557]
[1748096162167,0.29685922,673.72,673.16,0.68723557]
[1748096164071,0.29685922,673.72,673.17,0.68723557]
[1748096165770,0.29685922,673.72,673.18,0.68723557]
[1748096166670,0.29685922,673.72,673.19,0.68723557]
[1748096167867,0.29685922,673.72,673.2,0.68723557]
[1748096168971,0.29685922,673.72,673.21,0.68723557]
[1748096170173,0.29685922,673.72,673.08,0.726]
[1748096171573,0.29685922,673.72,673.09,0.68126519]
[1748096172374,0.29685922,673.72,673.1,0.68126519]
[1748096173675,0.29685922,673.72,673.11,0.68126519]
[1748096174475,0.29685922,673.72,673.12,0.68126519]
[1748096175578,0.29685922,673.72,673.13,0.68126519]
[1748096176675,0.29685922,673.72,673.14,0.68126519]
[1748096178384,0.29685922,673.72,673.08,0.726]
[1748096180085,0.29685922,673.72,673.09,0.67794279]
[1748096181586,0.29685922,673.72,673.1,0.67794279]
[1748096182988,0.29685922,673.72,673.09,0.67794279]
[1748096200095,0.29685922,673.72,672.93,0.67794279]
[1748096201101,0.29685922,673.72,672.94,0.67794279]
[1748096202301,0.29685922,673.72,672.95,0.668]
[1748096202499,0.29685922,673.72,672.95,1.34594279]
[1748096203299,0.29685922,673.72,672.96,0.67794279]
[1748096204898,0.29685922,673.72,672.97,0.67794279]
[1748096206300,0.29685922,673.72,672.98,0.67794279]
[1748096207307,0.29685922,673.72,672.99,0.67794279]
[1748096208407,0.29685922,673.72,673.0,0.67794279]
[1748096210106,0.29685922,673.72,673.01,0.67794279]
[1748096211307,0.29685922,673.72,673.02,0.67794279]
[1748096212903,0.29685922,673.72,673.03,0.67794279]
[1748096214308,0.29685922,673.72,673.04,0.67794279]
[1748096215309,0.29685922,673.72,673.05,0.67794279]
[1748096216306,0.29685922,673.72,673.06,0.67794279]
[1748096217310,0.29685922,673.72,673.07,0.67794279]
[1748096218212,0.29685922,673.72,673.08,0.67794279]
[1748096219610,0.29685922,673.72,673.09,0.67794279]
[1748096220912,0.29685922,673.72,673.1,0.67794279]
[1748096221311,0.29685922,673.72,673.11,0.666]
[1748096222310,0.29685922,673.72,673.12,0.67794279]
[1748096223111,0.29685922,673.72,673.13,0.67794279]
[1748096224110,0.29685922,673.72,673.14,0.67794279]
[1748096225010,0.29685922,673.72,673.15,0.67794279]
[1748096226917,0.29685922,673.72,673.16,0.67794279]
[1748096228018,0.29685922,673.72,673.17,0.67794279]
[1748096229421,0.29685922,673.72,673.18,0.67794279]
[1748096230920,0.29685922,673.72,673.11,0.666]
[1748096230921,0.29685922,673.72,673.19,0.67794279]
[1748096232721,0.29685922,673.72,673.2,0.67794279]
[1748096234023,0.29685922,673.72,673.21,0.67794279]
[1748096235225,0.29685922,673.72,673.22,0.67794279]
[1748096236824,0.29685922,673.72,673.23,0.67794279]
[1748096238129,0.29685922,673.72,673.24,0.67794279]
[1748096239126,0.29685922,673.72,673.25,0.67794279]
[1748096240630,0.29685922,673.72,673.26,0.67794279]
[1748096241628,0.29685922,673.72,673.27,0.67794279]
[1748096243627,0.29685922,673.72,673.28,0.67794279]
[1748096245031,0.29685922,673.72,673.29,0.67794279]
[1748096246332,0.29685922,673.72,673.3,0.67794279]
[1748096247730,0.29685922,673.72,673.31,0.67794279]
[1748096248526,0.29685922,673.72,673.11,0.666]
[1748096249934,0.29685922,673.72,673.12,0.66223112]
[1748096251133,0.29685922,673.72,673.13,0.66223112]
[1748096252333,0.29685922,673.72,673.12,0.66223112]
[1748096254734,0.29685922,673.72,673.0,0.66223112]
[1748096255631,0.29685922,673.72,673.01,0.66223112]
[1748096257038,0.29685922,673.72,673.04,0.70438453]
[1748096258138,0.29685922,673.72,673.05,0.657]
[1748096258334,0.29685922,673.72,673.05,1.31923112]
[1748096259341,0.29685922,673.72,673.06,0.66223112]
[1748096260739,0.29685922,673.72,673.07,0.66223112]
[1748096261938,0.29685922,673.72,673.09,0.70438453]
[1748096263042,0.29685922,673.72,673.1,0.66223112]
[1748096268539,0.29685922,673.72,673.06,0.66223112]
[1748096269843,0.29685922,673.72,673.07,0.66223112]
[1748096271044,0.29685922,673.72,673.08,0.66223112]
[1748096272646,0.29685922,673.72,673.09,0.66223112]
[1748096273846,0.29685922,673.72,673.1,0.66223112]
[1748096275148,0.29685922,673.72,673.11,0.66223112]
[1748096276049,0.29685922,673.72,673.12,0.66223112]
[1748096277454,0.29685922,673.72,673.08,0.70438453]
[1748096278454,0.29685922,673.72,673.09,0.66223112]
[1748096280657,0.29685922,673.72,673.06,0.66223112]
[1748096301279,0.29685922,673.72,673.05,0.657]
[1748096305182,0.29685922,673.72,672.85,0.70438453]
[1748096305582,0.29685922,673.72,672.86,0.6612791]
[1748096306881,0.29685922,673.72,672.87,0.6612791]
[1748096308084,0.29685922,673.72,672.88,0.6612791]
[1748096309182,0.29685922,673.72,672.89,0.598]
[1748096309382,0.29685922,673.72,672.89,1.2592791]
[1748096310587,0.29685922,673.72,672.9,0.6612791]
[1748096311785,0.29685922,673.72,672.91,0.6612791]
[1748096313187,0.29685922,673.72,672.92,0.6612791]
[1748096314786,0.29685922,673.72,672.93,0.6612791]
[1748096316087,0.29685922,673.72,672.94,0.6612791]
[1748096316988,0.29685922,673.72,672.95,0.6612791]
[1748096329691,0.29685922,673.72,672.96,0.6612791]
[1748096330590,0.29685922,673.72,672.97,0.6612791]
[1748096331995,0.29685922,673.72,672.98,0.6612791]
[1748096333293,0.29685922,673.72,672.99,0.6612791]
[1748096334593,0.29685922,673.72,673.0,0.6612791]
[1748096336392,0.29685922,673.72,673.01,0.6612791]
[1748096337695,0.29685922,673.72,673.04,0.70438453]
[1748096338695,0.29685922,673.72,673.05,0.6612791]
[1748096340597,0.29685922,673.72,673.06,0.6612791]
[1748096341896,0.29685922,673.72,673.07,0.6612791]
[1748096343297,0.29685922,673.72,673.08,0.6612791]
[1748096344097,0.29685922,673.72,673.09,0.6612791]
[1748096345200,0.29685922,673.72,673.1,0.6612791]
[1748096346302,0.29685922,673.72,673.11,0.6612791]
[1748096348199,0.29685922,673.72,672.89,0.598]
[1748096348200,0.29685922,673.72,673.12,0.6612791]
[1748096349005,0.29685922,673.72,673.13,0.6612791]
[1748096350505,0.29685922,673.72,673.14,0.6612791]
[1748096352006,0.29685922,673.72,673.15,0.6612791]
[1748096353103,0.29685922,673.72,673.16,0.6612791]
[1748096354709,0.29685922,673.72,673.17,0.6612791]
[1748096355607,0.29685922,673.72,673.18,0.6612791]
[1748096356106,0.29685922,673.72,673.19,0.6612791]
[1748096357106,0.29685922,673.72,673.2,0.6612791]
[1748096357707,0.29685922,673.72,673.21,0.658]
[1748096373822,0.29685922,673.72,672.91,0.70438453]
[1748096374824,0.29685922,673.72,672.95,0.70438453]
[1748096376023,0.29685922,673.72,672.96,0.65451443]
[1748096377623,0.29685922,673.72,672.97,0.70438453]
[1748096377828,0.29685922,673.72,672.97,1.90089896]
[1748096378926,0.29685922,673.72,672.98,0.65451443]
[1748096380229,0.29685922,673.72,672.99,0.65451443]
[1748096381531,0.29685922,673.72,673.0,0.65451443]
[1748096382530,0.29685922,673.72,673.01,0.65451443]
[1748096383836,0.29685922,673.72,673.02,0.65451443]
[1748096385533,0.29685922,673.72,673.03,0.65451443]
[1748096386837,0.29685922,673.72,673.04,0.65451443]
[1748096388034,0.29685922,673.72,672.98,0.65451443]
[1748096389238,0.29685922,673.72,672.99,0.65451443]
[1748096395741,0.29685922,673.72,673.0,0.65451443]
[1748096397242,0.29685922,673.72,673.01,0.65451443]
[1748096398739,0.29685922,673.72,673.02,0.65451443]
[1748096399443,0.29685922,673.72,673.03,0.65451443]
[1748096400746,0.29685922,673.72,673.04,0.65451443]
[1748096402042,0.29685922,673.72,673.05,0.65451443]
[1748096403950,0.29685922,673.72,673.06,0.65451443]
[1748096405049,0.29685922,673.72,673.07,0.65451443]
[1748096406651,0.29685922,673.72,673.08,0.65451443]
[1748096408151,0.29685922,673.72,673.09,0.65451443]
[1748096409349,0.29685922,673.72,673.1,0.65451443]
[1748096410945,0.29685922,673.72,673.11,0.65451443]
[1748096412453,0.29685922,673.72,673.12,0.65451443]
[1748096414054,0.29685922,673.72,673.13,0.65451443]
[1748096415854,0.29685922,673.72,673.14,0.65451443]
[1748096417457,0.29685922,673.72,673.15,0.65451443]
[1748096418753,0.29685922,673.72,673.16,0.65451443]
[1748096419958,0.29685922,673.72,673.17,0.65451443]
[1748096421760,0.29685922,673.72,673.18,0.65451443]
[1748096422756,0.29685922,673.72,673.19,0.65451443]
[1748096424258,0.29685922,673.72,673.2,0.65451443]
[1748096425358,0.29685922,673.72,673.21,0.65451443]
[1748096426963,0.29685922,673.72,673.22,0.607]
[1748096427263,0.29685922,673.72,673.22,1.26151443]
[1748096428264,0.29685922,673.72,673.23,0.65451443]
[1748096429364,0.29685922,673.72,673.24,0.65451443]
[1748096430163,0.29685922,673.72,673.22,0.607]
[1748096431270,0.29685922,673.72,673.23,0.65107856]
[1748096432869,0.29685922,673.72,673.24,0.65107856]
[1748096434472,0.29685922,673.72,673.22,0.607]
[1748096435873,0.29685922,673.72,673.23,0.6513711]
[1748096437179,0.29685922,673.72,673.24,0.6513711]
[1748096438479,0.29685922,673.72,673.23,0.6513711]
[1748096464800,0.29685922,673.72,673.05,0.6513711]
[1748096465998,0.29685922,673.72,673.06,0.6513711]
[1748096466498,0.29685922,673.72,673.06,1.3483711]
[1748096467100,0.29685922,673.72,673.07,0.6513711]
[1748096468502,0.29685922,673.72,673.08,0.6513711]
[1748096469404,0.29685922,673.72,673.09,0.6513711]
[1748096470902,0.29685922,673.72,673.1,0.6513711]
[1748096472703,0.29685922,673.72,673.11,0.6513711]
[1748096474508,0.29685922,673.72,673.12,0.6513711]
[1748096476113,0.29685922,673.72,673.13,0.6513711]
[1748096477812,0.29685922,673.72,673.14,0.6513711]
[1748096479516,0.29685922,673.72,673.15,0.6513711]
[1748096481212,0.29685922,673.72,673.16,0.6513711]
[1748096482720,0.29685922,673.72,673.17,1.1783711]
[1748096483918,0.29685922,673.72,673.18,0.6513711]
[1748096487723,0.29685922,673.72,673.19,0.6513711]
[1748096489324,0.29685922,673.72,673.2,0.6513711]
[1748096490323,0.29685922,673.72,673.21,0.6513711]
[1748096491628,0.29685922,673.72,673.18,0.6513711]
[1748096492527,0.29685922,673.72,673.19,0.6513711]
[1748096493727,0.29685922,673.72,673.18,0.6513711]
[1748096504639,0.29685922,673.72,673.17,0.527]
[1748096514850,0.29685922,673.72,672.82,0.70438453]
[1748096515449,0.29685922,673.72,672.83,1.35579473]
[1748096516748,0.29685922,673.72,672.84,0.6514102]
[1748096518054,0.29685922,673.72,672.85,1.35579473]
[1748096518957,0.29685922,673.72,672.86,0.673]
[1748096519556,0.29685922,673.72,672.87,0.6514102]
[1748096521058,0.29685922,673.72,672.88,0.6514102]
[1748096522358,0.29685922,673.72,672.89,0.6514102]
[1748096524062,0.29685922,673.72,672.9,0.6514102]
[1748096525464,0.29685922,673.72,672.91,0.6514102]
[1748096526663,0.29685922,673.72,672.92,0.6514102]
[1748096527663,0.29685922,673.72,672.93,0.6514102]
[1748096529565,0.29685922,673.72,672.94,0.6514102]
[1748096530465,0.29685922,673.72,672.95,0.6514102]
[1748096531765,0.29685922,673.72,672.96,0.6514102]
[1748096532767,0.29685922,673.72,672.97,0.6514102]
[1748096535068,0.29685922,673.72,672.86,0.673]
[1748096536269,0.29685922,673.72,672.87,0.65017353]
[1748096538272,0.29685922,673.72,672.88,0.65017353]
[1748096539467,0.29685922,673.72,672.87,0.65017353]
[1748096549481,0.29685922,673.72,672.88,0.65017353]
[1748096550590,0.29685922,673.72,672.89,0.65017353]
[1748096551885,0.29685922,673.72,672.9,0.65017353]
[1748096552692,0.29685922,673.72,672.91,0.65017353]
[1748096553892,0.29685922,673.72,672.92,0.65017353]
[1748096555397,0.29685922,673.72,672.93,0.65017353]
[1748096556695,0.29685922,673.72,672.88,0.65017353]
[1748096558193,0.29685922,673.72,672.89,0.65017353]
[1748096559199,0.29685922,673.72,672.9,0.65017353]
[1748096560601,0.29685922,673.72,672.91,0.65017353]
[1748096561703,0.29685922,673.72,672.92,0.65017353]
[1748096563405,0.29685922,673.72,672.93,0.65017353]
[1748096564608,0.29685922,673.72,672.94,0.65017353]
[1748096566308,0.29685922,673.72,672.95,0.65017353]
[1748096567109,0.29685922,673.72,672.96,0.65017353]
[1748096568209,0.29685922,673.72,672.97,0.65017353]
[1748096569714,0.29685922,673.72,672.98,0.65017353]
[1748096571313,0.29685922,673.72,672.99,0.65017353]
[1748096572414,0.29685922,673.72,672.87,0.65017353]
[1748096573912,0.29685922,673.72,672.88,1.35455806]
[1748096574912,0.29685922,673.72,672.89,0.65017353]
[1748096576112,0.29685922,673.72,672.9,0.65017353]
[1748096577015,0.29685922,673.72,672.91,0.65017353]
[1748096578020,0.29685922,673.72,672.92,0.65017353]
[1748096578519,0.29685922,673.72,672.93,0.727]
[1748096579821,0.29685922,673.72,672.94,0.65017353]
[1748096581417,0.29685922,673.72,672.95,0.65017353]
[1748096582326,0.29685922,673.72,672.96,0.65017353]
[1748096583926,0.29685922,673.72,672.97,0.65017353]
[1748096585123,0.29685922,673.72,672.98,0.65017353]
[1748096586428,0.29685922,673.72,672.94,0.65017353]
[1748096587332,0.29685922,673.72,672.95,0.65017353]
[1748096588830,0.29685922,673.72,672.96,0.65017353]
[1748096590431,0.29685922,673.72,672.97,0.65017353]
[1748096591730,0.29685922,673.72,672.98,0.65017353]
[1748096592730,0.29685922,673.72,672.93,0.727]
[1748096592731,0.29685922,673.72,672.94,0.65017353]
[1748096602337,0.5552514,673.72,672.94,0.65017353]
[1748096614748,0.5552514,673.72,672.72,0.65017353]
[1748096615846,0.5552514,673.72,672.73,0.65017353]
[1748096617042,0.5552514,673.72,672.74,0.65017353]
[1748096617449,0.5552514,673.72,672.75,0.634]
[1748096618748,0.5552514,673.72,672.76,0.65017353]
[1748096620751,0.5552514,673.72,672.77,0.65017353]
[1748096622050,0.5552514,673.72,672.78,0.65017353]
[1748096623250,0.5552514,673.72,672.76,0.65017353]
[1748096624451,0.5552514,673.72,672.77,0.65017353]
[1748096625454,0.5552514,673.72,672.78,0.65017353]
[1748096626652,0.5552514,673.72,672.76,0.65017353]
[1748096627548,0.5552514,673.72,672.77,0.65017353]